fUST/lending_fUST_20250609
["ID","MTS","AMOUNT","RATE_DAILY","PERIOD"]
[365060863,1749435040496,-391.05385054,0.00019726,2]
[365060864,1749435040506,-439.04188704,0.00019726,2]
[365060865,1749435040516,-431.72170664,0.00019726,2]
[365060866,1749435040525,-406.69904431,0.00019726,2]
[365060867,1749435040535,-417.0216667,0.00019726,2]
[365060868,1749435040545,-454.22698516,0.00019726,2]
[365060869,1749435040555,-420.20728017,0.00019726,2]
[365060870,1749435040565,-440.0,0.00019726,2]
[365060871,1749435040577,-461.1605217,0.00019726,2]
[365060872,1749435040587,-436.13729762,0.00019726,2]
[365060873,1749435040596,-429.86800385,0.00019726,2]
[365060874,1749435040606,-440.0,0.00019726,2]
[365060875,1749435040616,-426.4470082,0.00019726,2]
[365060876,1749435040625,-351.0836764,0.00019726,2]
[365060877,1749435040635,-474.49756661,0.00019726,2]
[365060878,1749435040645,-1387.06,0.00019726,2]
[365060879,1749435040655,-440.0,0.00019726,2]
[365060880,1749435040665,-440.0,0.00019726,2]
[365060881,1749435040675,-440.0,0.00019726,2]
[365060882,1749435040685,-405.79088266,0.00019726,2]
[365060883,1749435040694,-440.0,0.00019726,2]
[365060884,1749435040704,-403.96443006,0.00019726,2]
[365060885,1749435040714,-454.27302743,0.00019726,2]
[365060886,1749435040724,-482.15782143,0.00019726,2]
[365060887,1749435040734,-440.0,0.00019726,2]
[365060888,1749435040744,-253.55982167,0.00019726,2]
[365060889,1749435040754,-604.59,0.00019726,2]
[365060890,1749435040764,-458.36204639,0.00019726,2]
[365060891,1749435040773,-463.87901659,0.00019726,2]
[365060892,1749435040783,-494.62057702,0.00019726,2]
[365060893,1749435040793,-454.75202072,0.00019726,2]
[365060894,1749435040802,-440.0,0.00019726,2]
[365060895,1749435040811,-443.5843808,0.00019726,2]
[365060896,1749435040821,-424.50412575,0.00019726,2]
[365060897,1749435040830,-452.37196631,0.00019726,2]
[365060898,1749435040839,-590.33,0.00019726,2]
[365060899,1749435040849,-440.0,0.00019726,2]
[365060900,1749435040859,-481.78448724,0.00019726,2]
[365060901,1749435040966,-460.41920565,0.00019726,2]
[365060902,1749435040977,-555.41015328,0.00019726,2]
[365060903,1749435040989,-425.95646398,0.00019726,2]
[365060904,1749435041000,-440.0,0.00019726,2]
[365060905,1749435041010,-395.58865184,0.00019726,2]
[365060906,1749435041023,-440.0,0.00019726,2]
[365060907,1749435041036,-617.89,0.00019726,2]
[365060908,1749435041048,-479.08189107,0.00019726,2]
[365060909,1749435041059,-523.66,0.00019726,2]
[365060910,1749435041069,-461.30529598,0.00019726,2]
[365060911,1749435041079,-561.11,0.00019726,2]
[365060912,1749435041089,-476.76740772,0.00019726,2]
[365060913,1749435041099,-440.0,0.00019726,2]
[365060914,1749435041110,-603.18,0.00019726,2]
[365060915,1749435041120,-908.12,0.00019726,2]
[365060916,1749435041131,-452.31745591,0.00019726,2]
[365060917,1749435041141,-1705.51,0.00019726,2]
[365060918,1749435041152,-515.09,0.00019726,2]
[365060919,1749435041163,-440.0,0.00019726,2]
[365060920,1749435041172,-481.39307748,0.00019726,2]
[365060921,1749435041182,-987.73,0.00019726,2]
[365060922,1749435041192,-904.53,0.00019726,2]
[365060923,1749435041203,-440.0,0.00019726,2]
[365060924,1749435041212,-775.2,0.00019726,2]
[365060925,1749435041222,-440.0,0.00019726,2]
[365060926,1749435041231,-449.24033286,0.00019726,2]
[365060927,1749435041240,-1123.35,0.00019726,2]
[365060928,1749435041250,-440.0,0.00019726,2]
[365060929,1749435041260,-440.0,0.00019726,2]
[365060930,1749435041270,-440.0,0.00019726,2]
[365060931,1749435041279,-440.0,0.00019726,2]
[365060932,1749435041289,-1244.85,0.00019726,2]
[365060933,1749435041299,-458.08433621,0.00019726,2]
[365060934,1749435041309,-440.0,0.00019726,2]
[365060935,1749435041318,-420.0,0.00019746,2]
[365060936,1749435041327,-420.0,0.00019746,2]
[365060937,1749435041337,-584.18,0.00019842,2]
[365060938,1749435041347,-792.57241456,0.000199,2]
[365060939,1749435041357,-487.80996545,0.0002,2]
[365060940,1749435041366,-440.0,0.0002,2]
[365060941,1749435041376,-1387.06,0.0002,2]
[365060942,1749435041385,-460.77094841,0.0002,2]
[365060943,1749435041395,-481.63817616,0.0002,2]
[365060944,1749435041405,-440.0,0.0002,2]
[365060945,1749435041415,-440.0,0.0002,2]
[365060946,1749435041425,-604.59,0.0002,2]
[365060947,1749435041435,-440.0,0.0002,2]
[365060948,1749435041445,-590.33,0.0002,2]
[365060949,1749435041454,-440.0,0.0002,2]
[365060950,1749435041464,-343.78516047,0.0002,2]
[365060951,1749435041474,-498.05042362,0.0002,2]
[365060952,1749435041483,-617.89,0.0002,2]
[365060953,1749435041493,-523.66,0.0002,2]
[365060954,1749435041503,-561.11,0.0002,2]
[365060955,1749435041513,-440.0,0.0002,2]
[365060956,1749435041522,-603.18,0.0002,2]
[365060957,1749435041531,-908.12,0.0002,2]
[365060958,1749435041541,-1705.51,0.0002,2]
[365060959,1749435041551,-515.09,0.0002,2]
[365060960,1749435041560,-440.0,0.0002,2]
[365060961,1749435041570,-987.73,0.0002,2]
[365060962,1749435041580,-904.53,0.0002,2]
[365060963,1749435041590,-440.0,0.0002,2]
[365060964,1749435041601,-775.2,0.0002,2]
[365060965,1749435041614,-440.0,0.0002,2]
[365060966,1749435041625,-1123.35,0.0002,2]
[365060967,1749435041634,-282.15081053,0.0002,2]
[365060968,1749435041644,-440.0,0.0002,2]
[365060969,1749435041654,-389.87390552,0.0002,2]
[365060970,1749435041664,-453.35113288,0.0002,2]
[365060971,1749435041674,-1244.85,0.0002,2]
[365060972,1749435041684,-440.0,0.0002,2]
[365060973,1749435041693,-792.5724144,0.00020072,2]
[365060974,1749435041703,-161.98,0.00020134,2]
[365060975,1749435041713,-184.401623,0.00020187,2]
[365060976,1749435041724,-792.5724144,0.00020245,2]
[365060977,1749435041734,-440.0,0.00020273,2]
[365060978,1749435041743,-1387.06,0.00020273,2]
[365060979,1749435041753,-440.0,0.00020273,2]
[365060980,1749435041763,-195.38387881,0.00020273,2]
[365060981,1749435041773,-604.59,0.00020273,2]
[365060982,1749435041783,-483.06337725,0.00020273,2]
[365060983,1749435041793,-590.33,0.00020273,2]
[365060984,1749435041803,-440.0,0.00020273,2]
[365060985,1749435041813,-617.89,0.00020273,2]
[365060986,1749435041823,-523.66,0.00020273,2]
[365060987,1749435041833,-561.11,0.00020273,2]
[365060988,1749435041843,-440.0,0.00020273,2]
[365060989,1749435041853,-603.18,0.00020273,2]
[365060990,1749435041862,-908.12,0.00020273,2]
[365060991,1749435041873,-1705.51,0.00020273,2]
[365060992,1749435041883,-515.09,0.00020273,2]
[365060993,1749435041893,-440.0,0.00020273,2]
[365060994,1749435041903,-987.73,0.00020273,2]
[365060995,1749435041913,-904.53,0.00020273,2]
[365060996,1749435041923,-440.0,0.00020273,2]
[365060997,1749435041933,-775.2,0.00020273,2]
[365060998,1749435041948,-440.0,0.00020273,2]
[365060999,1749435041958,-1123.35,0.00020273,2]
[365061000,1749435041968,-440.0,0.00020273,2]
[365061001,1749435041978,-1244.85,0.00020273,2]
[365061002,1749435041989,-440.0,0.00020273,2]
[365061003,1749435042000,-166.0,0.00020274,2]
[365061004,1749435042012,-792.5724144,0.00020417,3]
[365061005,1749435042022,-424.05420114,0.00020522,2]
[365061006,1749435042032,-834.7738823,0.00020522,2]
[365061007,1749435042041,-229.64266968,0.00020522,2]
[365061008,1749435042051,-842.5625,0.00020522,2]
[365061009,1749435042061,-160.0,0.00020522,2]
[365061010,1749435042071,-440.0,0.00020547,2]
[365061011,1749435042081,-1387.06,0.00020547,2]
[365061012,1749435042090,-500.0,0.00020547,2]
[365061013,1749435042100,-440.0,0.00020547,2]
[365061014,1749435042110,-604.59,0.00020547,2]
[365061015,1749435042120,-590.33,0.00020547,2]
[365061016,1749435042129,-440.0,0.00020547,2]
[365061017,1749435042140,-617.89,0.00020547,2]
[365061018,1749435042149,-523.66,0.00020547,2]
[365061019,1749435042160,-561.11,0.00020547,2]
[365061020,1749435042169,-440.0,0.00020547,2]
[365061021,1749435042178,-603.18,0.00020547,2]
[365061022,1749435042188,-908.12,0.00020547,2]
[365061023,1749435042197,-1705.51,0.00020547,2]
[365061024,1749435042206,-515.09,0.00020547,2]
[365061025,1749435042216,-583.26763229,0.00020547,2]
[365061026,1749435042225,-987.73,0.00020547,2]
[365061027,1749435042235,-904.53,0.00020547,2]
[365061028,1749435042245,-154.14633244,0.00020547,2]
[365061029,1749435042254,-775.2,0.00020547,2]
[365061030,1749435042264,-1123.35,0.00020547,2]
[365061031,1749435042274,-571.52,0.00020547,2]
[365061032,1749435042283,-1244.85,0.00020547,2]
[365061033,1749435042293,-440.0,0.00020547,2]
[365061034,1749435042303,-792.5724144,0.0002059,3]
[365061035,1749435042313,-730.22,0.00020669,2]
[365061036,1749435042323,-792.5724144,0.00020762,3]
[365061037,1749435042334,-1100.0,0.00020765,2]
[365061039,1749435042344,-440.0,0.00020821,2]
[365061040,1749435042354,-1387.06,0.00020821,2]
[365061042,1749435042364,-440.0,0.00020821,2]
[365061043,1749435042374,-604.59,0.00020821,2]
[365061044,1749435042385,-590.33,0.00020821,2]
[365061045,1749435042396,-232.11,0.00020821,2]
[365061046,1749435042405,-617.89,0.00020821,2]
[365061047,1749435042415,-523.66,0.00020821,2]
[365061048,1749435042425,-561.11,0.00020821,2]
[365061049,1749435042435,-402.3520142,0.00020821,2]
[365061050,1749435042446,-603.18,0.00020821,2]
[365061051,1749435042456,-908.12,0.00020821,2]
[365061052,1749435042465,-1705.51,0.00020821,2]
[365061053,1749435042475,-515.09,0.00020821,2]
[365061055,1749435042485,-987.73,0.00020821,2]
[365061056,1749435042495,-904.53,0.00020821,2]
[365061057,1749435042506,-775.2,0.00020821,2]
[365061058,1749435042515,-1123.35,0.00020821,2]
[365061059,1749435042525,-1244.85,0.00020821,2]
[365061060,1749435042534,-480.499939,0.00020821,2]
[365061061,1749435042544,-792.5724144,0.00020934,4]
[365061062,1749435042554,-440.0,0.00021095,2]
[365061063,1749435042563,-1387.06,0.00021095,2]
[365061064,1749435042573,-500.0,0.00021095,3]
[365061065,1749435042583,-440.0,0.00021095,2]
[365061066,1749435042593,-604.59,0.00021095,2]
[365061067,1749435042603,-590.33,0.00021095,2]
[365061068,1749435042613,-617.89,0.00021095,2]
[365061069,1749435042624,-523.66,0.00021095,2]
[365061070,1749435042634,-561.11,0.00021095,2]
[365061071,1749435042643,-603.18,0.00021095,2]
[365061072,1749435042653,-908.12,0.00021095,2]
[365061073,1749435042663,-1705.51,0.00021095,2]
[365061075,1749435042673,-515.09,0.00021095,2]
[365061077,1749435042682,-987.73,0.00021095,2]
[365061079,1749435042692,-904.53,0.00021095,2]
[365061081,1749435042701,-775.2,0.00021095,2]
[365061083,1749435042711,-1123.35,0.00021095,2]
[365061085,1749435042720,-1244.85,0.00021095,2]
[365061087,1749435042729,-1104.54,0.000211,2]
[365061089,1749435042738,-792.5724144,0.00021107,4]
[365061091,1749435042748,-792.5724144,0.00021279,5]
[365061093,1749435042757,-440.0,0.00021369,2]
[365061095,1749435042766,-1387.06,0.00021369,2]
[365061097,1749435042777,-440.0,0.00021369,2]
[365061099,1749435042786,-604.59,0.00021369,2]
[365061101,1749435042795,-590.33,0.00021369,2]
[365061103,1749435042804,-617.89,0.00021369,2]
[365061105,1749435042814,-523.66,0.00021369,2]
[365061107,1749435042825,-561.11,0.00021369,2]
[365061109,1749435042834,-603.18,0.00021369,2]
[365061111,1749435042843,-908.12,0.00021369,2]
[365061113,1749435042853,-1705.51,0.00021369,2]
[365061115,1749435042863,-515.09,0.00021369,2]
[365061117,1749435042872,-987.73,0.00021369,2]
[365061119,1749435042882,-904.53,0.00021369,2]
[365061121,1749435042892,-775.2,0.00021369,2]
[365061123,1749435042901,-1123.35,0.00021369,2]
[365061125,1749435042912,-1244.85,0.00021369,2]
[365061127,1749435042922,-792.5724144,0.00021452,5]
[365061129,1749435042931,-876.27,0.00021496,2]
[365061131,1749435042945,-194.18780731,0.00021529,2]
[365061133,1749435042954,-476.0,0.00021543,2]
[365061135,1749435042963,-587.0,0.00021543,2]
[365061137,1749435042973,-792.5724144,0.00021624,5]
[365061139,1749435042982,-440.0,0.00021643,2]
[365061141,1749435042993,-1387.06,0.00021643,2]
[365061143,1749435043003,-440.0,0.00021643,2]
[365061145,1749435043012,-604.59,0.00021643,2]
[365061147,1749435043022,-590.33,0.00021643,2]
[365061149,1749435043031,-617.89,0.00021643,2]
[365061151,1749435043040,-523.66,0.00021643,2]
[365061153,1749435043050,-561.11,0.00021643,2]
[365061155,1749435043059,-603.18,0.00021643,2]
[365061157,1749435043069,-908.12,0.00021643,2]
[365061159,1749435043079,-1705.51,0.00021643,2]
[365061176,1749435043088,-515.09,0.00021643,2]
[365061177,1749435043196,-987.73,0.00021643,2]
[365061178,1749435043206,-904.53,0.00021643,2]
[365061179,1749435043216,-775.2,0.00021643,2]
[365061180,1749435043226,-1123.35,0.00021643,2]
[365061181,1749435043235,-1244.85,0.00021643,2]
[365061182,1749435043245,-155.45774948,0.00021773,2]
[365061183,1749435043255,-792.5724144,0.00021797,6]
[365061184,1749435043264,-1005.6,0.000218,5]
[365061185,1749435043274,-1100.0,0.00021861,2]
[365061186,1749435043283,-392.95,0.000219,2]
[365061187,1749435043293,-3000.0,0.000219,2]
[365061188,1749435043303,-3000.0,0.0002191,2]
[365061189,1749435043313,-213.05153702,0.00021912,2]
[365061190,1749435043323,-160.0,0.00021912,2]
[365061191,1749435043333,-156.12500595,0.00021917,2]
[365061192,1749435043343,-500.0,0.00021917,2]
[365061193,1749435043352,-440.0,0.00021917,2]
[365061194,1749435043362,-1387.06,0.00021917,2]
[365061195,1749435043371,-440.0,0.00021917,2]
[365061196,1749435043380,-604.59,0.00021917,2]
[365061198,1749435043390,-590.33,0.00021917,2]
[365061200,1749435043401,-617.89,0.00021917,2]
[365061203,1749435043410,-523.66,0.00021917,2]
[365061205,1749435043420,-561.11,0.00021917,2]
[365061207,1749435043430,-603.18,0.00021917,2]
[365061209,1749435043440,-908.12,0.00021917,2]
[365061211,1749435043450,-1705.51,0.00021917,2]
[365061213,1749435043459,-515.09,0.00021917,2]
[365061215,1749435043469,-987.73,0.00021917,2]
[365061217,1749435043478,-904.53,0.00021917,2]
[365061219,1749435043488,-775.2,0.00021917,2]
[365061221,1749435043497,-1123.35,0.00021917,2]
[365061223,1749435043507,-1244.85,0.00021917,2]
[365061225,1749435043516,-3000.0,0.0002192,2]
[365061227,1749435043525,-3000.0,0.0002193,2]
[365061229,1749435043535,-3000.0,0.0002194,2]
[365061231,1749435043544,-3000.0,0.0002195,2]
[365061233,1749435043553,-3000.0,0.0002196,2]
[365061235,1749435043562,-792.5724144,0.00021969,6]
[365061237,1749435043572,-3000.0,0.0002197,2]
[365061239,1749435043581,-3000.0,0.0002198,2]
[365061241,1749435043590,-3000.0,0.0002199,2]
[365061243,1749435043599,-3000.0,0.00022,2]
[365061245,1749435043609,-171.0,0.00022,2]
[365061247,1749435043619,-161.0,0.00022,2]
[365061249,1749435043628,-3000.0,0.0002201,2]
[365061251,1749435043638,-3000.0,0.0002202,2]
[365061253,1749435043647,-500.0,0.00022025,2]
[365061255,1749435043657,-3000.0,0.0002203,2]
[365061257,1749435043666,-500.0,0.00022036,2]
[365061259,1749435043675,-3000.0,0.0002204,2]
[365061261,1749435043685,-3000.0,0.0002205,2]
[365061263,1749435043695,-3000.0,0.0002206,2]
[365061265,1749435043705,-3000.0,0.0002207,2]
[365061267,1749435043714,-3000.0,0.0002208,2]
[365061269,1749435043724,-3000.0,0.0002209,2]
[365061271,1749435043733,-3000.0,0.000221,2]
[365061273,1749435043742,-378.0,0.000221,14]
[365061275,1749435043752,-3000.0,0.0002211,2]
[365061277,1749435043761,-3000.0,0.0002212,2]
[365061280,1749435043772,-3000.0,0.0002213,2]
[365061282,1749435043781,-3000.0,0.0002214,2]
[365061284,1749435043791,-792.5724144,0.00022141,6]
[365061286,1749435043801,-3000.0,0.0002215,2]
[365061288,1749435043810,-3000.0,0.0002216,2]
[365061290,1749435043820,-501.84358557,0.0002217,2]
[365061292,1749435043829,-3000.0,0.0002217,2]
[365061294,1749435043839,-600.0,0.00022176,2]
[365061296,1749435043848,-3000.0,0.0002218,2]
[365061298,1749435043857,-3000.0,0.0002219,2]
[365061300,1749435043868,-440.0,0.00022191,4]
[365061302,1749435043877,-1387.06,0.00022191,4]
[365061304,1749435043887,-440.0,0.00022191,4]
[365061306,1749435043897,-604.59,0.00022191,4]
[365061308,1749435043906,-590.33,0.00022191,4]
[365061310,1749435043915,-617.89,0.00022191,4]
[365061312,1749435043926,-523.66,0.00022191,4]
[365061314,1749435043936,-561.11,0.00022191,4]
[365061317,1749435043950,-603.18,0.00022191,4]
[365061318,1749435043963,-908.12,0.00022191,4]
[365061321,1749435043974,-1705.51,0.00022191,4]
[365061323,1749435043988,-515.09,0.00022191,4]
[365061325,1749435043999,-987.73,0.00022191,4]
[365061327,1749435044013,-904.53,0.00022191,4]
[365061329,1749435044023,-775.2,0.00022191,4]
[365061331,1749435044033,-1123.35,0.00022191,4]
[365061333,1749435044044,-1244.85,0.00022191,4]
[365061335,1749435044054,-3000.0,0.000222,2]
[365061337,1749435044065,-200.46604529,0.000222,69]
[365061339,1749435044075,-3000.0,0.0002221,2]
[365061341,1749435044085,-3000.0,0.0002222,2]
[365061343,1749435044093,-3000.0,0.0002223,2]
[365061345,1749435044103,-500.0,0.00022239,2]
[365061347,1749435044115,-3000.0,0.0002224,2]
[365061349,1749435044123,-500.0,0.00022247,2]
[365061351,1749435044133,-160.44949506,0.00022247,2]
[365061353,1749435044143,-500.0,0.00022247,2]
[365061355,1749435044153,-3000.0,0.0002225,2]
[365061357,1749435044163,-3000.0,0.0002226,2]
[365061359,1749435044172,-3000.0,0.0002227,2]
[365061361,1749435044181,-3000.0,0.0002228,2]
[365061363,1749435044191,-3000.0,0.0002229,2]
[365061365,1749435044201,-3000.0,0.000223,2]
[365061367,1749435044211,-1110.910619,0.000223,2]
[365061370,1749435044220,-3000.0,0.0002231,2]
[365061372,1749435044230,-792.5724144,0.00022314,7]
[365061374,1749435044240,-3000.0,0.0002232,2]
[365061376,1749435044249,-1022.31,0.00022322,2]
[365061378,1749435044259,-3000.0,0.0002233,2]
[365061380,1749435044268,-3673.489128,0.0002234,2]
[365061382,1749435044277,-1104.54,0.000224,7]
[365061384,1749435044287,-400.0,0.00022465,2]
[365061386,1749435044296,-400.0,0.00022465,2]
[365061388,1749435044307,-400.0,0.00022465,2]
[365061390,1749435044316,-400.0,0.00022465,2]
[365061392,1749435044326,-400.0,0.00022465,2]
[365061394,1749435044336,-400.0,0.00022465,2]
[365061396,1749435044346,-400.0,0.00022465,2]
[365061398,1749435044356,-400.0,0.00022465,2]
[365061400,1749435044368,-400.0,0.00022465,2]
[365061402,1749435044378,-400.0,0.00022465,2]
[365061404,1749435044388,-400.0,0.00022465,2]
[365061407,1749435044398,-400.0,0.00022465,2]
[365061409,1749435044408,-400.0,0.00022465,2]
[365061411,1749435044417,-500.0,0.00022465,2]
[365061413,1749435044427,-440.0,0.00022465,4]
[365061415,1749435044436,-1387.06,0.00022465,4]
[365061417,1749435044446,-440.0,0.00022465,4]
[365061419,1749435044456,-604.59,0.00022465,4]
[365061421,1749435044465,-590.33,0.00022465,4]
[365061423,1749435044475,-617.89,0.00022465,4]
[365061425,1749435044484,-523.66,0.00022465,4]
[365061427,1749435044494,-561.11,0.00022465,4]
[365061429,1749435044503,-603.18,0.00022465,4]
[365061431,1749435044513,-908.12,0.00022465,4]
[365061433,1749435044523,-1705.51,0.00022465,4]
[365061435,1749435044532,-515.09,0.00022465,4]
[365061437,1749435044542,-987.73,0.00022465,4]
[365061439,1749435044552,-904.53,0.00022465,4]
[365061441,1749435044561,-775.2,0.00022465,4]
[365061443,1749435044571,-1123.35,0.00022465,4]
[365061445,1749435044582,-1244.85,0.00022465,4]
[365061447,1749435044591,-239.54259644,0.00022467,2]
[365061449,1749435044601,-792.5724144,0.00022486,7]
[365061451,1749435044611,-504.82529594,0.00022573,2]
[365061453,1749435044621,-1000.0,0.00022584,2]
[365061455,1749435044631,-364.9269501,0.0002263,2]
[365061457,1749435044641,-364.9269501,0.0002263,2]
[365061459,1749435044650,-792.5724144,0.00022659,7]
[365061461,1749435044660,-151.31920398,0.0002271,2]
[365061463,1749435044670,-151.34355789,0.0002271,2]
[365061465,1749435044679,-5000.0,0.0002271,2]
[365061468,1749435044690,-1688.0,0.0002271,2]
[365061470,1749435044699,-500.0,0.0002271,2]
[365061472,1749435044709,-500.0,0.0002271,2]
[365061474,1749435044718,-500.0,0.0002271,2]
[365061476,1749435044728,-500.0,0.0002271,2]
[365061478,1749435044737,-500.0,0.0002271,2]
[365061480,1749435044746,-514.61626466,0.0002271,2]
[365061482,1749435044755,-500.0,0.0002271,2]
[365061484,1749435044765,-500.0,0.0002271,2]
[365061486,1749435044774,-500.0,0.0002271,2]
[365061488,1749435044784,-500.0,0.0002271,2]
[365061490,1749435044793,-500.0,0.0002271,2]
[365061492,1749435044802,-500.0,0.0002271,2]
[365061494,1749435044811,-500.0,0.0002271,2]
[365061496,1749435044820,-500.0,0.0002271,2]
[365061498,1749435044830,-500.0,0.0002271,2]
[365061500,1749435044839,-500.0,0.0002271,2]
[365061502,1749435044848,-500.0,0.0002271,2]
[365061504,1749435044857,-500.0,0.0002271,2]
[365061506,1749435044867,-500.0,0.0002271,2]
[365061508,1749435044876,-207.4,0.0002271,2]
[365061510,1749435044886,-1200.0,0.00022724,2]
[365061512,1749435044895,-400.0,0.00022739,2]
[365061514,1749435044904,-440.0,0.00022739,4]
[365061516,1749435044914,-1387.06,0.00022739,4]
[365061518,1749435044923,-440.0,0.00022739,4]
[365061520,1749435044932,-604.59,0.00022739,4]
[365061522,1749435044945,-590.33,0.00022739,4]
[365061524,1749435044955,-617.89,0.00022739,4]
[365061526,1749435044964,-523.66,0.00022739,4]
[365061528,1749435044973,-561.11,0.00022739,4]
[365061530,1749435044983,-603.18,0.00022739,4]
[365061532,1749435044993,-908.12,0.00022739,4]
[365061534,1749435045002,-1705.51,0.00022739,4]
[365061536,1749435045012,-515.09,0.00022739,4]
[365061538,1749435045022,-987.73,0.00022739,4]
[365061540,1749435045033,-904.53,0.00022739,4]
[365061542,1749435045042,-775.2,0.00022739,4]
[365061544,1749435045051,-1123.35,0.00022739,4]
[365061546,1749435045062,-1244.85,0.00022739,4]
[365061548,1749435045071,-314.34854636,0.00022765,2]
[365061550,1749435045081,-1000.0,0.00022787,2]
[365061552,1749435045090,-1000.0,0.00022795,2]
[365061554,1749435045100,-1020.55502605,0.00022795,2]
[365061567,1749435045205,-1000.0,0.000228,2]
[365061569,1749435045216,-792.5724144,0.00022831,8]
[365061571,1749435045226,-295.9215313,0.00022904,2]
[365061573,1749435045235,-153.0,0.00022904,2]
[365061575,1749435045245,-153.0,0.00022904,2]
[365061578,1749435045255,-158.7201836,0.00022904,2]
[365061580,1749435045264,-153.0,0.00022904,2]
[365061582,1749435045274,-1100.0,0.00022957,2]
[365061584,1749435045283,-792.5724144,0.00023003,8]
[365061586,1749435045293,-181.04344344,0.00023013,2]
[365061588,1749435045302,-500.0,0.00023013,2]
[365061590,1749435045312,-440.0,0.00023013,4]
[365061592,1749435045322,-1387.06,0.00023013,4]
[365061594,1749435045331,-440.0,0.00023013,4]
[365061596,1749435045340,-604.59,0.00023013,4]
[365061598,1749435045349,-590.33,0.00023013,4]
[365061600,1749435045360,-617.89,0.00023013,4]
[365061602,1749435045370,-523.66,0.00023013,4]
[365061604,1749435045380,-561.11,0.00023013,4]
[365061606,1749435045389,-603.18,0.00023013,4]
[365061608,1749435045399,-908.12,0.00023013,4]
[365061610,1749435045408,-1705.51,0.00023013,4]
[365061612,1749435045419,-515.09,0.00023013,4]
[365061614,1749435045429,-987.73,0.00023013,4]
[365061616,1749435045439,-904.53,0.00023013,4]
[365061618,1749435045450,-775.2,0.00023013,4]
[365061620,1749435045460,-1123.35,0.00023013,4]
[365061622,1749435045470,-1244.85,0.00023013,4]
[365061624,1749435045480,-162.21587453,0.00023096,2]
[365061627,1749435045490,-162.98198565,0.00023096,2]
[365061629,1749435045500,-1500.0,0.00023132,2]
[365061631,1749435045510,-1168.36,0.00023149,2]
[365061633,1749435045520,-792.5724144,0.00023176,8]
[365061635,1749435045530,-46809.65,0.000232,7]
[365061637,1749435045540,-213.08899333,0.000232,7]
[365061639,1749435045550,-151.0,0.000232,7]
[365061641,1749435045560,-158.326953,0.000232,7]
[365061643,1749435045570,-151.0,0.000232,7]
[365061645,1749435045579,-151.0,0.000232,7]
[365061647,1749435045589,-151.0,0.000232,7]
[365061649,1749435045599,-151.0,0.000232,7]
[365061651,1749435045609,-5000.0,0.00023258,2]
[365061653,1749435045618,-1800.0,0.00023272,2]
[365061655,1749435045628,-151.0,0.00023287,7]
[365061656,1749435045638,-151.0,0.00023287,7]
[365061657,1749435045648,-151.0,0.00023287,7]
[365061658,1749435045658,-151.0,0.00023287,7]
[365061659,1749435045669,-151.0,0.00023287,7]
[365061660,1749435045679,-151.0,0.00023287,7]
[365061661,1749435045688,-440.0,0.00023287,4]
[365061662,1749435045698,-1387.06,0.00023287,4]
[365061663,1749435045708,-440.0,0.00023287,4]